bitfinex/quotes_SOLUSD_20250321
["timestamp","ask_amount","ask_price","bid_price","bid_amount"]
[1742549350686,14.36761903,128.91,128.88,0.34732314]
[1742549351495,14.36761903,128.9,128.88,0.063]
[1742549351895,14.36761903,128.91,128.88,0.063]
[1742549352387,14.36761903,128.91,128.88,312.063]
[1742549353895,14.36761903,128.91,128.88,319.822]
[1742549354600,99.14161903,128.91,128.88,319.822]
[1742549355379,99.14161903,128.91,128.88,7.822]
[1742549356797,99.14161903,128.91,128.88,0.34732314]
[1742549358404,99.14161903,128.91,128.89,312.0]
[1742549362894,99.17161903,128.91,128.89,312.0]
[1742549365717,99.17161903,128.91,128.89,312.0]
[1742549370617,99.17161903,128.91,128.89,319.7585]
[1742549370814,84.804,128.91,128.89,319.7585]
[1742549374022,84.804,128.91,128.89,312.0]
[1742549374219,99.17161903,128.91,128.89,312.0]
[1742549376528,84.804,128.91,128.89,312.0]
[1742549377423,84.804,128.91,128.89,319.7583]
[1742549377602,84.804,128.91,128.89,7.7583]
[1742549378702,84.804,128.91,128.89,27.7583]
[1742549380718,84.804,128.91,128.9,312.0]
[1742549385224,84.804,128.91,128.89,20.0]
[1742549388142,84.804,128.91,128.89,332.0]
[1742549388720,84.804,128.91,128.89,20.0]
[1742549391740,84.804,128.91,128.9,312.0]
[1742549401635,106.92891903,128.91,128.9,312.0]
[1742549401946,106.92891903,128.91,128.88,0.063]
[1742549401947,26.40814886,128.89,128.88,0.063]
[1742549402239,40.77576789,128.89,128.88,0.063]
[1742549402444,103.29764886,128.87,128.86,0.063]
[1742549402625,33.01726789,128.87,128.86,0.063]
[1742549404157,40.77696789,128.87,128.86,0.063]
[1742549406345,98.24744401,128.87,128.86,0.063]
[1742549406533,106.37284401,128.87,128.86,0.063]
[1742549406729,33.01726789,128.86,128.85,0.063]
[1742549406937,33.30159103,128.86,128.85,0.063]
[1742549407144,14.36761903,128.84,128.83,0.063]
[1742549407423,22.12911903,128.84,128.83,0.063]
[1742549409551,84.737,128.82,128.78,0.063]
[1742549409740,14.36761903,128.8,128.78,0.063]
[1742549410051,84.737,128.79,128.78,0.063]
[1742549411451,14.36761903,128.8,128.78,0.063]
[1742549412940,14.36761903,128.8,128.79,312.0]
[1742549413336,14.36761903,128.81,128.79,312.0]
[1742549413537,14.36761903,128.82,128.78,7.8281]
[1742549414328,14.36761903,128.83,128.78,22.19571903]
[1742549414534,84.8,128.82,128.78,42.19571903]
[1742549414853,84.8,128.82,128.79,14.36761903]
[1742549415632,84.8,128.82,128.78,42.19571903]
[1742549416457,84.8,128.82,128.81,312.0]
[1742549416758,14.36761903,128.83,128.81,312.0]
[1742549416936,33.01726789,128.84,128.81,312.0]
[1742549417135,14.36761903,128.84,128.79,14.36761903]
[1742549420159,84.8,128.83,128.81,312.0]
[1742549422159,84.8,128.82,128.81,312.0]
[1742549424343,99.16761903,128.82,128.78,0.063]
[1742549424552,14.36761903,128.8,128.78,0.063]
[1742549424749,84.8,128.81,128.78,0.063]
[1742549424750,14.36761903,128.79,128.78,0.063]
[1742549426954,7.7644,128.8,128.78,0.063]
[1742549427365,7.7644,128.8,128.78,312.063]
[1742549427539,22.13201903,128.8,128.78,312.063]
[1742549427744,26.41324886,128.81,128.78,312.063]
[1742549427961,111.21324886,128.81,128.78,312.063]
[1742549428352,84.8,128.81,128.78,0.063]
[1742549429267,106.93101903,128.81,128.78,0.063]
[1742549430040,92.5634,128.81,128.78,14.43061903]
[1742549430264,92.5634,128.81,128.78,0.063]
[1742549431365,92.5634,128.81,128.79,312.0]
[1742549432868,84.8,128.81,128.79,312.0]
[1742549433063,84.8,128.81,128.79,22.13171903]
[1742549434568,84.8,128.83,128.8,14.36761903]
[1742549434759,84.8,128.83,128.81,14.36761903]
[1742549434953,84.8,128.83,128.81,7.7632]
[1742549435148,84.8,128.83,128.8,22.13131903]
[1742549435967,84.8,128.83,128.82,312.0]
[1742549441672,84.8,128.83,128.78,20.28432314]
[1742549441867,84.8,128.83,128.69,13.01357709]
[1742549441868,7.7694,128.71,128.69,13.01357709]
[1742549442073,7.7694,128.71,128.66,40.74581124]
[1742549442074,38.933972,128.68,128.66,40.74581124]
[1742549442374,38.933972,128.68,128.64,3.67]
[1742549442375,38.64964886,128.64,128.6,242.28542665]
[1742549442576,53.01726789,128.64,128.6,242.28542665]
[1742549443067,18.64964886,128.64,128.6,242.28542665]
[1742549443278,41.19578658,128.64,128.6,242.28542665]
[1742549443772,5.77649255,128.64,128.61,263.38950087]
[1742549443975,5.77649255,128.64,128.62,7.26]
[1742549444872,5.77649255,128.64,128.63,432.42168157]
[1742549445080,5.77649255,128.64,128.63,312.0]
[1742549445262,22.54613772,128.64,128.63,312.0]
[1742549445458,41.19578658,128.64,128.63,312.0]
[1742549445963,48.96938658,128.64,128.63,312.0]
[1742549447075,70.4,128.62,128.6,1.4420635]
[1742549447276,92.94613772,128.61,128.6,1.4420635]
[1742549447664,70.4,128.61,128.6,23.98820122]
[1742549448581,70.4,128.61,128.6,1.4420635]
[1742549448955,100.72153772,128.61,128.6,1.4420635]
[1742549449976,100.72153772,128.61,128.6,313.4420635]
[1742549451180,70.4,128.61,128.6,313.4420635]
[1742549451385,30.32053772,128.63,128.6,313.4420635]
[1742549451683,22.54613772,128.62,128.6,313.4420635]
[1742549451864,30.32053772,128.63,128.6,1.4420635]
[1742549452279,22.54613772,128.64,128.59,22.54613772]
[1742549452477,22.54613772,128.65,128.6,22.54613772]
[1742549452691,92.94613772,128.64,128.59,22.54613772]
[1742549453067,22.54613772,128.63,128.58,22.54613772]
[1742549453266,30.32043772,128.63,128.58,22.54613772]
[1742549453469,22.54613772,128.63,128.58,22.54613772]
[1742549453976,22.54613772,128.63,128.58,30.32333772]
[1742549454270,92.94613772,128.64,128.59,22.54613772]
[1742549454475,70.4,128.64,128.6,22.54613772]
[1742549454868,70.4,128.64,128.63,312.0]
[1742549455069,22.54613772,128.64,128.57,7.24]
[1742549455291,22.54613772,128.61,128.57,7.24]
[1742549455478,70.4,128.6,128.57,7.24]
[1742549455689,70.4,128.6,128.57,15.0177]
[1742549457377,30.31933772,128.65,128.58,22.68829929]
[1742549457579,24.5,128.64,128.59,22.54613772]
[1742549457987,24.5,128.64,128.6,22.54613772]
[1742549458281,24.5,128.64,128.62,312.0]
[1742549458488,24.5,128.63,128.62,312.0]
[1742549459994,30.38183772,128.66,128.62,312.0]
[1742549460180,24.5,128.65,128.62,22.54613772]
[1742549460381,24.5,128.65,128.63,22.54613772]
[1742549460582,24.5,128.65,128.62,30.32083772]
[1742549463213,24.5,128.65,128.64,312.0]
[1742549465603,47.04613772,128.65,128.64,312.0]
[1742549465809,24.5,128.63,128.6,0.03]
[1742549466109,22.54613772,128.61,128.6,0.03]
[1742549466411,22.54613772,128.62,128.6,0.03]
[1742549467404,22.54613772,128.63,128.6,0.03]
[1742549468598,30.31973772,128.64,128.6,0.03]
[1742549468904,30.31973772,128.64,128.62,312.0]
[1742549471206,22.54613772,128.63,128.62,312.0]
[1742549471613,30.31973772,128.64,128.62,312.0]
[1742549471908,24.5,128.63,128.62,312.0]
[1742549472607,32.2742,128.63,128.62,312.0]
[1742549472803,24.5,128.63,128.6,30.35193772]
[1742549473109,24.5,128.63,128.62,22.54613772]
[1742549473508,24.5,128.65,128.62,22.54613772]
[1742549473711,24.5,128.65,128.64,22.54613772]
[1742549473922,0.063,128.66,128.64,22.54613772]
[1742549474095,0.063,128.66,128.63,22.54613772]
[1742549474816,0.063,128.66,128.63,30.32013772]
[1742549475820,0.063,128.66,128.65,312.0]
[1742549476208,0.063,128.66,128.65,341.70613772]
[1742549476802,0.063,128.66,128.65,349.47913772]
[1742549477815,0.063,128.66,128.65,362.33922025]
[1742549481825,54.81503772,128.72,128.65,362.33922025]
[1742549482002,32.2696,128.71,128.67,22.54613772]
[1742549482521,38.01170472,128.71,128.67,22.54613772]
[1742549482724,38.01170472,128.71,128.68,22.54613772]
[1742549482924,24.5,128.7,128.68,22.54613772]
[1742549483120,24.5,128.7,128.67,22.54613772]
[1742549484107,24.5,128.7,128.68,22.54613772]
[1742549484309,24.5,128.7,128.67,30.31763772]
[1742549485020,24.5,128.7,128.69,312.0]
[1742549485522,24.5,128.71,128.69,334.54613772]
[1742549485707,5.76532189,128.7,128.69,341.68613772]
[1742549485907,5.76532189,128.7,128.69,29.68613772]
[1742549487118,5.76532189,128.7,128.69,37.45673772]
[1742549488127,5.82832189,128.7,128.69,37.45673772]
[1742549488423,5.82832189,128.7,128.69,29.68613772]
[1742549488629,5.82832189,128.7,128.67,7.12]
[1742549488817,0.063,128.7,128.69,312.0]
[1742549489325,0.063,128.7,128.68,22.54613772]
[1742549490419,0.063,128.7,128.68,30.31713772]
[1742549491821,0.063,128.7,128.68,22.54613772]
[1742549492331,0.063,128.7,128.69,312.0]
[1742549494333,0.063,128.7,128.69,342.31673772]
[1742549494728,0.063,128.7,128.69,334.54613772]
[1742549494917,0.063,128.7,128.69,312.0]
[1742549495842,0.063,128.7,128.69,319.7706]
[1742549496328,0.063,128.7,128.69,342.31673772]
[1742549496531,0.063,128.7,128.69,319.7706]
[1742549496922,0.063,128.7,128.69,312.0]
[1742549498434,24.563,128.7,128.69,312.0]
[1742549499522,0.063,128.7,128.69,312.0]
[1742549499716,0.063,128.7,128.69,319.7706]
[1742549500319,0.063,128.7,128.69,312.0]
[1742549504245,20.24946436,128.7,128.69,312.0]
[1742549504445,20.24946436,128.7,128.65,7.06]
[1742549504830,14.40318757,128.69,128.64,14.40318757]
[1742549505026,14.40318757,128.69,128.64,21.46318757]
[1742549505540,7.7712,128.68,128.64,21.46318757]
[1742549505927,13.55447679,128.68,128.64,21.46318757]
[1742549506144,13.55447679,128.68,128.64,7.06]
[1742549506343,27.95766436,128.68,128.64,7.06]
[1742549506545,27.95766436,128.68,128.64,21.46318757]
[1742549506747,14.40318757,128.67,128.64,7.06]
[1742549507142,30.29635126,128.68,128.64,7.06]
[1742549507445,30.29635126,128.68,128.64,319.06]
[1742549508278,30.28574561,128.67,128.64,319.06]
[1742549508628,30.28574561,128.67,128.64,7.06]
[1742549509037,24.5,128.67,128.64,7.06]
[1742549509438,24.5,128.67,128.64,37.35865126]
[1742549509948,24.5,128.67,128.65,22.52515126]
[1742549510128,24.5,128.67,128.64,29.58515126]
[1742549510657,32.2718,128.67,128.64,7.06]
[1742549511146,24.5,128.66,128.61,213.1551]
[1742549511347,24.5,128.65,128.62,29.56515126]
[1742549511529,24.5,128.65,128.64,312.0]
[1742549511726,30.29695126,128.67,128.64,312.0]
[1742549512231,30.29695126,128.67,128.62,29.56515126]
[1742549512547,22.52515126,128.65,128.6,0.03]
[1742549512739,14.3673,128.67,128.6,0.03]
[1742549512740,47.02515126,128.64,128.6,0.03]
[1742549513046,22.52515126,128.62,128.6,0.03]
[1742549513353,24.5,128.61,128.6,0.03]
[1742549514047,32.2754,128.61,128.6,0.03]
[1742549515031,32.2754,128.61,128.6,312.03]
[1742549515239,38.06413751,128.61,128.6,312.03]
[1742549515552,30.28873751,128.61,128.6,312.03]
[1742549516734,30.28873751,128.61,128.6,334.55515126]
[1742549516980,30.28873751,128.61,128.6,30.33115126]
[1742549518636,24.5,128.65,128.6,42.90691065]
[1742549518835,24.5,128.64,128.63,22.52515126]
[1742549519050,24.5,128.66,128.63,22.52515126]
[1742549519849,24.5,128.66,128.65,312.0]
[1742549521545,24.5,128.66,128.64,7.7734]
[1742549523161,24.5,128.66,128.63,30.29905126]
[1742549524459,24.5,128.66,128.65,312.0]
[1742549524833,103.36215126,128.68,128.65,312.0]
[1742549525161,24.5,128.67,128.65,7.7728]
[1742549525338,24.5,128.67,128.64,7.7733]
[1742549525734,47.02515126,128.67,128.64,7.7733]
[1742549526036,24.5,128.67,128.64,7.7733]
[1742549526669,24.5,128.67,128.63,30.32905126]
[1742549528163,24.5,128.67,128.66,312.0]
[1742549530560,95.25270827,128.68,128.66,312.0]
[1742549530772,103.02390827,128.68,128.66,312.0]
[1742549530963,95.25270827,128.68,128.66,312.0]
[1742549531146,80.837,128.68,128.66,312.0]
[1742549532054,24.5,128.67,128.66,319.7723]
[1742549533055,24.5,128.67,128.66,29.14800827]
[1742549534253,24.5,128.67,128.63,14.44570827]
[1742549534454,24.5,128.67,128.64,14.7334]
[1742549534671,24.5,128.67,128.64,6.96]
[1742549535188,24.5,128.67,128.64,21.37570827]
[1742549535984,24.5,128.67,128.66,312.0]
[1742549536391,46.68750827,128.67,128.66,312.0]
[1742549536684,7.7718,128.67,128.66,312.0]
[1742549537657,7.8348,128.67,128.66,312.0]
[1742549537852,41.68000827,128.67,128.63,0.03]
[1742549538166,14.41570827,128.66,128.63,0.03]
[1742549539574,14.41570827,128.64,128.63,0.03]
[1742549539870,33.06535713,128.64,128.63,0.03]
[1742549540259,35.16150341,128.64,128.63,0.03]
[1742549541158,43.29228352,128.64,128.63,0.03]
[1742549542185,51.06588352,128.64,128.63,0.03]
[1742549542371,43.29228352,128.64,128.63,0.03]
[1742549543079,20.0,128.64,128.63,0.03]
[1742549543285,41.19613724,128.66,128.63,0.03]
[1742549543578,42.54648838,128.66,128.63,0.03]
[1742549544659,24.5,128.65,128.63,0.03]
[1742549546182,24.5,128.65,128.64,312.0]
[1742549546767,42.54648838,128.66,128.64,312.0]
[1742549548389,22.54648838,128.66,128.64,312.0]
[1742549548588,24.5,128.65,128.64,312.0]
[1742549549983,24.5,128.65,128.64,319.7736]
[1742549550693,24.5,128.65,128.64,312.0]
[1742549551186,24.5,128.65,128.64,319.7736]
[1742549552696,24.5,128.65,128.64,312.0]
[1742549553576,24.5,128.65,128.64,319.7736]
[1742549553778,24.5,128.65,128.64,312.0]
[1742549554202,30.38128838,128.67,128.64,312.0]
[1742549554394,24.5,128.66,128.64,312.0]
[1742549555789,22.54648838,128.65,128.63,0.03]
[1742549556106,47.04648838,128.64,128.63,0.03]
[1742549556281,22.54648838,128.64,128.63,0.03]
[1742549557110,30.32008838,128.64,128.63,0.03]
[1742549559904,30.31968838,128.65,128.63,0.03]
[1742549561601,22.54648838,128.64,128.63,0.03]
[1742549561901,30.38268838,128.65,128.63,0.03]
[1742549563111,22.25838784,128.65,128.63,0.03]
[1742549565837,24.5,128.64,128.63,0.03]
[1742549566339,24.5,128.64,128.63,6.91]
[1742549568143,24.5,128.64,128.63,14.6842]
[1742549568967,24.5,128.64,128.63,6.91]
[1742549569128,24.5,128.64,128.63,14.6842]
[1742549569334,24.5,128.64,128.63,326.6842]
[1742549569631,24.5,128.64,128.63,318.91]
[1742549571441,32.2736,128.64,128.63,318.91]
[1742549571642,22.25848784,128.65,128.63,318.91]
[1742549575164,22.25848784,128.65,128.63,6.91]
[1742549575363,22.25848784,128.65,128.63,0.03]
[1742549575536,14.42218784,128.64,128.63,0.03]
[1742549576766,22.19578784,128.64,128.63,0.03]
[1742549578065,40.8454367,128.64,128.63,0.03]
[1742549580739,24.47,128.62,128.61,312.03]
[1742549581461,46.66698784,128.62,128.61,0.03]
[1742549582836,24.47,128.62,128.61,0.03]
[1742549583277,24.47,128.62,128.61,14.45218784]
[1742549583459,24.47,128.62,128.61,22.22758784]
[1742549583657,24.47,128.62,128.61,29.06758784]
[1742549584477,24.47,128.62,128.61,341.06758784]
[1742549585066,24.47,128.64,128.61,341.06758784]
[1742549585263,24.47,128.64,128.63,14.42218784]
[1742549586267,24.533,128.64,128.63,14.42218784]
[1742549587174,24.533,128.64,128.63,22.19638784]
[1742549588358,24.533,128.64,128.63,334.19638784]
[1742549589286,0.063,128.64,128.63,334.19638784]
[1742549589584,0.063,128.64,128.63,312.0]
[1742549589784,0.063,128.64,128.63,326.42218784]
[1742549589954,0.063,128.64,128.63,334.19638784]
[1742549590873,0.063,128.64,128.63,326.42218784]
[1742549591887,0.063,128.64,128.63,334.19638784]
[1742549592381,0.063,128.64,128.63,347.05647037]
[1742549593278,0.063,128.64,128.63,365.70611923]
[1742549593883,0.0001,128.64,128.63,365.70611923]
[1742549594067,0.063,128.67,128.66,32.86008253]
[1742549594272,0.063,128.67,128.66,132.00287059]
[1742549595384,0.063,128.67,128.66,146.37967059]
[1742549596287,24.47,128.72,128.69,12.86008253]
[1742549596482,24.47,128.74,128.69,27.28227037]
[1742549596994,7.7685,128.73,128.69,14.42218784]
[1742549597163,7.7685,128.73,128.69,326.42218784]
[1742549597359,32.2378,128.74,128.69,334.19278784]
[1742549597581,32.2378,128.74,128.69,326.42218784]
[1742549598484,32.2378,128.74,128.69,334.19278784]
[1742549598874,32.2378,128.74,128.69,326.42218784]
[1742549599967,46.65998784,128.74,128.69,326.42218784]
[1742549600166,14.42218784,128.73,128.69,312.0]
[1742549600977,24.47,128.72,128.69,326.42218784]
[1742549601984,32.2389,128.72,128.69,312.0]
[1742549602169,24.47,128.72,128.69,326.42218784]
[1742549603278,24.47,128.72,128.69,334.19278784]
[1742549603882,24.47,128.72,128.69,326.42218784]
[1742549605384,32.239,128.72,128.69,326.42218784]
[1742549605584,32.239,128.72,128.69,312.0]
[1742549606295,24.47,128.72,128.69,326.42218784]
[1742549606590,24.47,128.72,128.69,334.19278784]
[1742549606972,24.47,128.71,128.69,334.19278784]
[1742549609578,24.47,128.72,128.69,326.42218784]
[1742549609785,14.42218784,128.71,128.67,6.82]
[1742549609981,7.7691,128.72,128.68,14.42218784]
[1742549610185,14.42218784,128.74,128.68,14.42218784]
[1742549610481,22.18998784,128.74,128.68,14.42218784]
[1742549610672,22.18998784,128.74,128.69,14.42218784]
[1742549610875,7.7682,128.73,128.69,14.42218784]
[1742549611090,7.7678,128.74,128.69,14.42218784]
[1742549611298,24.5,128.73,128.69,14.42218784]
[1742549611795,24.5,128.73,128.69,22.19278784]
[1742549612696,24.5,128.73,128.69,334.19278784]
[1742549612896,32.2683,128.73,128.69,334.19278784]
[1742549613099,24.5,128.73,128.69,334.19278784]
[1742549613796,24.5,128.73,128.69,347.05287037]
[1742549615685,24.5,128.74,128.69,347.05287037]
[1742549616195,24.5,128.74,128.69,365.70251923]
[1742549617886,24.5,128.75,128.69,365.70251923]
[1742549623720,24.5,128.75,128.72,32.29143625]
[1742549624016,24.5,128.77,128.74,14.42218784]
[1742549625489,24.5,128.77,128.75,14.42218784]
[1742549626022,24.5,128.77,128.75,18.2503738]
[1742549627222,24.5,128.77,128.76,312.0]
[1742549627902,24.563,128.78,128.76,326.42218784]
[1742549628226,24.563,128.78,128.77,6.8]
[1742549630113,32.3281,128.78,128.77,6.8]
[1742549630501,46.75028784,128.78,128.77,6.8]
[1742549631520,46.75028784,128.78,128.77,318.8]
[1742549632005,32.3281,128.78,128.77,318.8]
[1742549633215,7.8281,128.78,128.77,318.8]
[1742549633713,0.063,128.78,128.77,318.8]
[1742549635095,14.48518784,128.78,128.74,6.78]
[1742549635429,14.42218784,128.77,128.74,6.78]
[1742549635913,7.7663,128.76,128.74,6.78]
[1742549638122,7.7663,128.76,128.74,318.78]
[1742549638627,7.766,128.77,128.74,318.78]
[1742549639219,24.5,128.76,128.74,28.96968784]
[1742549639804,24.5,128.76,128.74,21.20218784]
[1742549640026,24.5,128.76,128.74,6.78]
[1742549640602,7.7669,128.75,128.74,6.78]
[1742549641120,7.7669,128.75,128.72,6.78]
[1742549641308,24.5,128.74,128.72,6.78]
[1742549641622,24.5,128.74,128.71,14.42218784]
[1742549641823,38.92218784,128.74,128.69,14.45218784]
[1742549642004,24.5,128.73,128.71,312.0]
[1742549645024,24.5,128.72,128.71,312.0]
[1742549646426,24.5,128.72,128.71,319.7694]
[1742549647298,24.5,128.72,128.71,7.7694]
[1742549648020,24.5,128.72,128.71,14.5294]
[1742549648621,24.5,128.72,128.71,6.76]
[1742549650302,24.5,128.72,128.71,318.76]
[1742549650810,7.7683,128.73,128.71,318.76]
[1742549651225,7.7683,128.73,128.71,6.76]
[1742549651817,38.92218784,128.72,128.69,0.03]
[1742549652132,14.42218784,128.7,128.69,0.03]
[1742549652321,22.19218784,128.7,128.69,0.03]
[1742549658216,14.42218784,128.7,128.69,0.03]
[1742549658914,7.7697,128.71,128.69,0.03]
[1742549659210,14.42218784,128.7,128.69,0.03]
[1742549660909,22.19218784,128.7,128.69,0.03]
[1742549661212,14.42218784,128.7,128.69,0.03]
[1742549661930,88.606,128.72,128.69,0.03]
[1742549662109,14.42218784,128.71,128.69,0.03]
[1742549663232,88.606,128.72,128.69,0.03]
[1742549663233,14.42218784,128.7,128.69,0.03]
[1742549664834,14.42218784,128.7,128.69,312.03]
[1742549667241,22.19168784,128.71,128.69,312.03]
[1742549667932,14.42218784,128.7,128.69,312.03]
[1742549669666,22.19218784,128.7,128.69,312.03]
[1742549671819,22.25518784,128.7,128.69,312.03]
[1742549673316,22.25518784,128.7,128.69,0.03]
[1742549675124,7.833,128.7,128.69,0.03]
[1742549676038,14.48518784,128.7,128.69,0.03]
[1742549676239,14.48518784,128.7,128.69,312.03]
[1742549677035,22.25518784,128.7,128.69,312.03]
[1742549677221,22.25518784,128.7,128.69,0.03]
[1742549677425,7.833,128.7,128.69,0.03]
[1742549678249,22.25518784,128.7,128.69,0.03]
[1742549679636,41.47348298,128.7,128.69,0.0001]
[1742549680534,39.21829514,128.67,128.66,0.03]
[1742549680735,111.32923434,128.67,128.63,0.03]
[1742549680928,34.42218784,128.64,128.63,0.03]
[1742549681131,14.42218784,128.65,128.63,0.03]
[1742549681940,80.9,128.66,128.63,0.03]
[1742549682129,14.42218784,128.65,128.63,0.03]
[1742549682949,22.19548784,128.65,128.63,0.03]
[1742549683148,14.42218784,128.65,128.63,0.03]
[1742549683653,14.42218784,128.65,128.63,312.03]
[1742549684359,95.32218784,128.66,128.63,312.03]
[1742549684559,80.9,128.66,128.63,312.03]
[1742549685256,24.5,128.64,128.63,319.804]
[1742549685550,24.5,128.64,128.63,334.22618784]
[1742549685958,80.9,128.66,128.63,334.22618784]
[1742549686254,80.9,128.66,128.64,21.14218784]
[1742549687445,80.9,128.66,128.64,28.91538784]
[1742549687652,24.5,128.68,128.65,14.42218784]
[1742549687958,24.5,128.67,128.66,14.42218784]
[1742549689436,24.5,128.67,128.66,334.19458784]
[1742549691155,24.5,128.67,128.66,319.7724]
[1742549691856,24.5,128.69,128.66,319.7724]
[1742549692357,24.5,128.69,128.66,22.19458784]
[1742549693467,24.5,128.69,128.66,7.7724]
[1742549695164,24.5,128.69,128.67,312.0]
[1742549697770,24.5,128.68,128.67,312.0]
[1742549700574,46.69338784,128.68,128.64,6.72]
[1742549700754,14.42218784,128.67,128.64,6.72]
[1742549700961,14.42218784,128.66,128.63,0.03]
[1742549701274,14.42218784,128.66,128.63,6.73]
[1742549701568,51.6992,128.68,128.63,6.73]
[1742549701569,14.42218784,128.67,128.63,6.73]
[1742549701761,14.42218784,128.65,128.63,0.03]
[1742549701969,46.69578784,128.64,128.63,0.03]
[1742549702184,22.19578784,128.64,128.63,0.03]
[1742549705371,14.42218784,128.64,128.63,0.03]
[1742549705558,22.19578784,128.64,128.63,0.03]
[1742549706085,14.42218784,128.64,128.63,0.03]
[1742549706557,22.19578784,128.64,128.63,0.03]
[1742549707279,14.42218784,128.64,128.63,0.03]
[1742549708284,14.42218784,128.66,128.63,0.03]
[1742549708861,14.42218784,128.65,128.63,0.03]
[1742549709060,14.42218784,128.66,128.63,0.03]
[1742549709766,22.19458784,128.66,128.63,0.03]
[1742549710365,14.42218784,128.66,128.63,0.03]
[1742549710565,14.42218784,128.66,128.63,312.03]
[1742549710785,24.5,128.65,128.63,312.03]
[1742549714480,24.5,128.65,128.63,319.8039]
[1742549714713,24.5,128.65,128.63,7.8039]
[1742549714883,24.5,128.65,128.63,14.5039]
[1742549715384,24.5,128.64,128.63,14.5039]
[1742549715578,95.32218784,128.67,128.63,14.5039]
[1742549715778,24.5,128.66,128.63,14.5039]
[1742549717586,38.92218784,128.66,128.64,312.0]
[1742549718481,24.5,128.66,128.64,312.0]
[1742549718868,24.5,128.65,128.64,312.0]
[1742549721081,24.5,128.65,128.63,6.73]
[1742549721888,32.2731,128.65,128.63,6.73]
[1742549722086,46.69528784,128.65,128.63,6.73]
[1742549722386,46.69528784,128.65,128.63,318.73]
[1742549723791,32.2731,128.65,128.63,318.73]
[1742549724171,24.5,128.64,128.63,318.73]
[1742549724383,7.7731,128.65,128.63,318.73]
[1742549725488,7.7731,128.65,128.63,6.73]
[1742549726392,7.7731,128.65,128.63,0.03]
[1742549727791,22.25778784,128.66,128.63,0.03]
[1742549728171,14.48518784,128.66,128.63,0.03]
[1742549728493,14.48518784,128.66,128.63,312.03]
[1742549728787,22.25758784,128.66,128.63,312.03]
[1742549729098,14.48518784,128.66,128.63,312.03]
[1742549729289,14.48518784,128.66,128.63,319.8041]
[1742549729976,24.5,128.65,128.63,319.8041]
[1742549730868,24.5,128.65,128.63,312.03]
[1742549733869,24.5,128.65,128.63,319.8041]
[1742549735483,24.5,128.65,128.63,312.03]
[1742549735671,24.5,128.65,128.63,319.804]
[1742549735877,24.5,128.64,128.63,319.804]
[1742549738983,24.5,128.64,128.63,312.03]
[1742549739604,24.5,128.64,128.63,319.8042]
[1742549740590,24.5,128.64,128.63,312.03]
[1742549741386,24.5,128.64,128.63,319.8042]
[1742549741800,0.063,128.66,128.63,319.8042]
[1742549743205,0.063,128.66,128.63,312.03]
[1742549746603,0.063,128.66,128.63,319.8042]
[1742549747303,0.063,128.66,128.63,312.03]
[1742549747606,24.5,128.65,128.63,312.03]
[1742549748511,24.5,128.65,128.63,319.8042]
[1742549748810,24.5,128.65,128.63,312.03]
[1742549749193,24.5,128.65,128.63,319.8041]
[1742549751213,24.5,128.65,128.63,334.22628784]